Workbook

Sheet Лист2
J1: Приложение N 4 УТВЕРЖДЕНО постановлением администрации Камышловского городского округа От 12.11.2019 N 970
J2: Приложение N 2.3 к муниципальной программе "Развитие образования,культуры, спорта и молодежной политики в Камышловском городском округе до 2020 года"
A3: ПЛАН МЕРОПРИЯТИЙ по выполнению подпрограммы Развитие системы дополнительного образования в Камышловском городском округе
A6: № строки | B6: Наименование мероприятия/ Источники расходов на финансирование | C6: Объем расходов на выполнение мероприятия за счет всех источников ресурсного обеспечения, рублей | K6: Номер строки целевых показателей, на достижение которых направлены мероприятия
C7: всего | D7: 2014 | E7: 2015 | F7: 2016 | G7: 2017 | H7: 2018 | I7: 2019 | J7: 2020
A8: 1 | B8: 2 | C8: 3 | D8: 4 | E8: 5 | F8: 6 | G8: 7 | H8: 8 | I8: 9 | J8: 10 | K8: 11
B9: ВСЕГО ПО МУНИЦИПАЛЬНОЙ ПОДПРОГРАММЕ, В ТОМ ЧИСЛЕ | C9: =SUM(C10:C13) -> 282309697.7 | D9: =SUM(D10:D13) -> 34197203 | E9: =SUM(E10:E13) -> 34474037.98 | F9: =SUM(F10:F13) -> 35216526 | G9: =SUM(G10:G13) -> 39621620 | H9: =SUM(H10:H13) -> 46824257.01 | I9: =SUM(I10:I13) -> 45900284.72 | J9: =SUM(J10:J13) -> 46075769
A10: =A9+1 -> 1 | B10: федеральный бюджет | C10: =SUM(D10:J10) -> 0 | D10: =D18 -> 0 | E10: =E18 -> 0 | F10: =F18 -> 0 | G10: =G18 -> 0 | H10: =H18 -> 0 | I10: =I18 -> 0 | J10: =J18 -> 0
A11: =A10+1 -> 2 | B11: областной бюджет | C11: =SUM(D11:J11) -> 149300 | D11: =D19 -> 77000 | E11: =E19 -> 0 | F11: =F19 -> 72300 | G11: =G19 -> 0 | H11: =H19 -> 0 | I11: =I19 -> 0 | J11: =J19 -> 0
A12: =A11+1 -> 3 | B12: местный бюджет | C12: =SUM(D12:J12) -> 282160397.7 | D12: =D20 -> 34120203 | E12: =E20 -> 34474037.98 | F12: =F20 -> 35144226 | G12: =G20 -> 39621620 | H12: =H20 -> 46824257.01 | I12: =I20 -> 45900284.72 | J12: =J20 -> 46075769
A13: =A12+1 -> 4 | B13: внебюджетные источники | C13: =SUM(D13:J13) -> 0 | D13: =D21 -> 0 | E13: =E21 -> 0 | F13: =F21 -> 0 | G13: =G21 -> 0 | H13: =H21 -> 0 | I13: =I21 -> 0 | J13: =J21 -> 0
B16: Прочие нужды
B17: Всего по направлению "Прочие нужды", в том числе | C17: =SUM(C18:C21) -> 282309697.7 | D17: =SUM(D18:D21) -> 34197203 | E17: =SUM(E18:E21) -> 34474037.98 | F17: =SUM(F18:F21) -> 35216526 | G17: =SUM(G18:G21) -> 39621620 | H17: =SUM(H18:H21) -> 46824257.01 | I17: =SUM(I18:I21) -> 45900284.72 | J17: =SUM(J18:J21) -> 46075769
A18: =A17+1 -> 1 | B18: федеральный бюджет | C18: =SUM(D18:J18) -> 0 | D18: =D23+D28+D33+D38+D43 -> 0 | E18: =E23+E28+E33+E38+E43 -> 0 | F18: =F23+F28+F33+F38+F43 -> 0 | G18: =G23+G28+G33+G38+G43 -> 0 | H18: =H23+H28+H33+H38+H43 -> 0 | I18: =I23+I28+I33+I38+I43 -> 0 | J18: =J23+J28+J33+J38+J43 -> 0
A19: =A18+1 -> 2 | B19: областной бюджет | C19: =SUM(D19:J19) -> 149300 | D19: =D24+D29+D34+D39+D44 -> 77000 | E19: =E24+E29+E34+E39+E44 -> 0 | F19: =F24+F29+F34+F39+F44 -> 72300 | G19: =G24+G29+G34+G39+G44 -> 0 | H19: =H24+H29+H34+H39+H44 -> 0 | I19: =I24+I29+I34+I39+I44 -> 0 | J19: =J24+J29+J34+J39+J44 -> 0
A20: =A19+1 -> 3 | B20: местный бюджет | C20: =SUM(D20:J20) -> 282160397.7 | D20: =D25+D30+D35+D40+D45 -> 34120203 | E20: =E25+E30+E35+E40+E45 -> 34474037.98 | F20: =F25+F30+F35+F40+F45 -> 35144226 | G20: =G25+G30+G35+G40+G45 -> 39621620 | H20: =H25+H30+H35+H40+H45+H50 -> 46824257.01 | I20: =I25+I30+I35+I40+I45+I50+I55 -> 45900284.72 | J20: =J25+J30+J35+J40+J45+J50+J55 -> 46075769
A21: =A20+1 -> 4 | B21: внебюджетные источники | C21: =SUM(D21:J21) -> 0 | D21: =D26+D31+D36+D41+D46 -> 0 | E21: =E26+E31+E36+E41+E46 -> 0 | F21: =F26+F31+F36+F41+F46 -> 0 | G21: =G26+G31+G36+G41+G46 -> 0 | H21: =H26+H31+H36+H41+H46 -> 0 | I21: =I26+I31+I36+I41+I46 -> 0 | J21: =J26+J31+J36+J41+J46 -> 0
B22: Мероприятие 1. Организация предоставления дополнительного образования детей в муниципальных учреждениях дополнительного образования | C22: =SUM(C23:C26) -> 266615567.4 | D22: =SUM(D23:D26) -> 30351000 | E22: =SUM(E23:E26) -> 33531701 | F22: =SUM(F23:F26) -> 35033726 | G22: =SUM(G23:G26) -> 38121620 | H22: =SUM(H23:H26) -> 42014281 | I22: =SUM(I23:I26) -> 42128970.4 | J22: =SUM(J23:J26) -> 45434269 | K22: 44-47
A23: 1 | B23: федеральный бюджет | C23: =SUM(D23:J23) -> 0
A24: 2 | B24: областной бюджет | C24: =SUM(D24:J24) -> 0
A25: 3 | B25: местный бюджет | C25: =SUM(D25:J25) -> 266615567.4 | D25: 30351000 | E25: 33531701 | F25: 35033726 | G25: 38121620 | H25: 42014281 | I25: 42128970.4 | J25: 45434269
A26: 4 | B26: внебюджетные источники | C26: =SUM(D26:J26) -> 0
B27: Мероприятие 2. Мероприятия по укреплению и развитию материально - технической базы в муниципальных учреждениях дополнительного образования, всего, из них: | C27: =SUM(C28:C31) -> 2317822 | D27: =SUM(D28:D31) -> 227000 | E27: =SUM(E28:E31) -> 115000 | F27: =SUM(F28:F31) -> 182800 | G27: =SUM(G28:G31) -> 300000 | H27: =SUM(H28:H31) -> 1493022 | I27: =SUM(I28:I31) -> 0 | J27: =SUM(J28:J31) -> 0 | K27: 44-47
A28: =A27+1 -> 1 | B28: федеральный бюджет | C28: =SUM(D28:J28) -> 0
A29: =A28+1 -> 2 | B29: областной бюджет | C29: =SUM(D29:J29) -> 149300 | D29: 77000 | F29: 72300 | H29: 0 | I29: 0 | J29: 0
A30: 3 | B30: местный бюджет | C30: =SUM(D30:J30) -> 2168522 | D30: 150000 | E30: 115000 | F30: 110500 | G30: 300000 | H30: 1493022 | I30: 0 | J30: 0
A31: 4 | B31: внебюджетные источники | C31: =SUM(D31:J31) -> 0
B32: Мероприятие 3. Капитальный ремонт, приведение в соответствие с требованиями пожарной безопасности и санитарного законодательства зданий и помещений, в которых размещаются муниципальные учреждения дополнительного образования . | C32: =SUM(C33:C36) -> 7747611.01 | D32: =SUM(D33:D36) -> 3319203 | E32: =SUM(E33:E36) -> 500000 | F32: =SUM(F33:F36) -> 0 | G32: =SUM(G33:G36) -> 1200000 | H32: =SUM(H33:H36) -> 1196364.01 | I32: =SUM(I33:I36) -> 890544 | J32: =SUM(J33:J36) -> 641500
A33: =A32+1 -> 1 | B33: федеральный бюджет | C33: =SUM(D33:J33) -> 0
A34: =A33+1 -> 2 | B34: областной бюджет | C34: =SUM(D34:J34) -> 0
A35: 3 | B35: местный бюджет | C35: =SUM(D35:J35) -> 7747611.01 | D35: 3319203 | E35: 500000 | G35: 1200000 | H35: 1196364.01 | I35: 890544 | J35: 641500
A36: 4 | B36: внебюджетные источники | C36: =SUM(D36:J36) -> 0
B37: Мероприятие 4.Проведение городских массовых спортивных мероприятий | C37: =SUM(C38:C41) -> 300000 | D37: =SUM(D38:D41) -> 300000 | E37: =SUM(E38:E41) -> 0 | F37: =SUM(F38:F41) -> 0 | G37: =SUM(G38:G41) -> 0 | H37: =SUM(H38:H41) -> 0 | I37: =SUM(I38:I41) -> 0 | J37: =SUM(J38:J41) -> 0
A38: 1 | B38: федеральный бюджет | C38: =SUM(D38:J38) -> 0
A39: 2 | B39: областной бюджет | C39: =SUM(D39:J39) -> 0
A40: 3 | B40: местный бюджет | C40: =SUM(D40:J40) -> 300000 | D40: 300000
A41: 4 | B41: внебюджетные источники | C41: =SUM(D41:J41) -> 0
B42: Мероприятие 5. Проведение городских мероприятий, участие коллективов в областных и международных мероприятиях. | C42: =SUM(C43:C46) -> 2403036.98 | D42: =SUM(D43:D46) -> 0 | E42: =SUM(E43:E46) -> 327336.98 | F42: =SUM(F43:F46) -> 0 | G42: =SUM(G43:G46) -> 0 | H42: =SUM(H43:H46) -> 0 | I42: =SUM(I43:I46) -> 2075700 | J42: =SUM(J43:J46) -> 0
A43: 1 | B43: федеральный бюджет | C43: =SUM(D43:J43) -> 0
A44: 2 | B44: областной бюджет | C44: =SUM(D44:J44) -> 0
A45: 3 | B45: местный бюджет | C45: =SUM(D45:J45) -> 2403036.98 | E45: 327336.98 | G45: 0 | I45: 2075700
A46: 4 | B46: внебюджетные источники | C46: =SUM(D46:J46) -> 0
B47: Мероприятие 6. Мероприятия, направленные на устранение нарушений, выявленных органами государственного надзора в результате проверок в муниципальных учреждениях | C47: =SUM(C48:C51) -> 2925660.32 | D47: =SUM(D48:D51) -> 0 | E47: =SUM(E48:E51) -> 0 | F47: =SUM(F48:F51) -> 0 | G47: =SUM(G48:G51) -> 0 | H47: =SUM(H48:H51) -> 2120590 | I47: =SUM(I48:I51) -> 805070.32 | J47: =SUM(J48:J51) -> 0
A48: 1 | B48: федеральный бюджет | C48: =SUM(D48:J48) -> 0
A49: 2 | B49: областной бюджет | C49: =SUM(D49:J49) -> 0
A50: 3 | B50: местный бюджет | C50: =SUM(D50:J50) -> 2925660.32 | G50: 0 | H50: 2120590 | I50: 805070.32
A51: 4 | B51: внебюджетные источники | C51: =SUM(D51:J51) -> 0
B52: Мероприятие 7. Мероприятия направленные на обеспечение антитеррористической безопасности образовательных организаций | C52: =SUM(C53:C56) -> 0 | D52: =SUM(D53:D56) -> 0 | E52: =SUM(E53:E56) -> 0 | F52: =SUM(F53:F56) -> 0 | G52: =SUM(G53:G56) -> 0 | H52: =SUM(H53:H56) -> 0 | I52: =SUM(I53:I56) -> 0 | J52: =SUM(J53:J56) -> 0
A53: 1 | B53: федеральный бюджет | C53: =SUM(D53:J53) -> 0
A54: 2 | B54: областной бюджет | C54: =SUM(D54:J54) -> 0
A55: 3 | B55: местный бюджет | C55: =SUM(D55:J55) -> 0 | I55: 0
A56: 4 | B56: внебюджетные источники | C56: =SUM(D56:J56) -> 0

Sheet Лист3
